fUSD/lending_fUSD_20251011
["ID","MTS","AMOUNT","RATE_DAILY","PERIOD"]
[390781142,1760148642257,-1000.0,0.00017803,2]
[390781145,1760148642267,-453.53382073,0.00017804,2]
[390781148,1760148642276,-500.0,0.00017804,2]
[390781151,1760148642292,-150.0,0.00017804,2]
[390781154,1760148642303,-1247.0,0.00017804,2]
[390781157,1760148642313,-500.0,0.00017804,2]
[390781160,1760148642323,-500.0,0.00017804,2]
[390781163,1760148642334,-500.0,0.00017804,2]
[390781166,1760148642343,-849.11398038,0.00017814,2]
[390781168,1760148642353,-151.0,0.00017815,2]
[390781170,1760148642364,-151.0,0.00017815,2]
[390781172,1760148642374,-152.0,0.00017829,6]
[390781175,1760148642384,-158.0463401,0.00017833,2]
[390781177,1760148642393,-500.0,0.00017856,2]
[390781179,1760148642403,-200.0,0.00017856,2]
[390781182,1760148642413,-500.0,0.00017859,2]
[390781186,1760148642425,-150.0,0.00017859,2]
[390781188,1760148642436,-1247.0,0.00017859,2]
[390781191,1760148642445,-500.0,0.00017859,2]
[390781195,1760148642459,-500.0,0.00017859,2]
[390781200,1760148642473,-500.0,0.00017859,2]
[390781202,1760148642483,-4618.55825998,0.000179,2]
[390781205,1760148642492,-500.0,0.00017914,2]
[390781209,1760148642502,-247.8159196,0.00017914,2]
[390781212,1760148642511,-1247.0,0.00017914,2]
[390781215,1760148642520,-500.0,0.00017914,2]
[390781218,1760148642530,-500.0,0.00017914,2]
[390781221,1760148642542,-954.7640478,0.00017933,2]
[390781224,1760148642552,-4009.2847546,0.00017933,2]
[390781227,1760148642561,-163681.7140761,0.00017933,2]
[390781231,1760148642571,-1499.1657591,0.00017933,2]
[390781234,1760148642580,-2998.3315182,0.00017933,2]
[390781237,1760148642589,-583.0103214,0.00017933,2]
[390781240,1760148642599,-500.0,0.00017933,2]
[390781243,1760148642608,-849.11398037,0.00017954,2]
[390781246,1760148642617,-200.0,0.00017955,2]
[390781248,1760148642626,-261.6,0.0001796,2]
[390781251,1760148642636,-500.0,0.00017969,2]
[390781255,1760148642645,-1247.0,0.00017969,2]
[390781258,1760148642654,-500.0,0.00017969,2]
[390781261,1760148642664,-500.0,0.00017969,2]
[390781264,1760148642674,-300.0,0.00017999,2]
[390781267,1760148642684,-445129.54882276,0.00018,2]
[390781269,1760148642693,-151.0,0.00018,2]
[390781271,1760148642703,-17797.77115981,0.00018,2]
[390781273,1760148642712,-1398.84507944,0.00018,2]
[390781275,1760148642721,-162.0,0.00018,2]
[390781277,1760148642730,-200.0,0.00018,2]
[390781279,1760148642741,-186.34545921,0.00018,2]
[390781281,1760148642751,-151.0,0.00018,2]
[390781282,1760148642759,-151.0,0.00018,2]
[390781283,1760148642768,-153.0,0.00018,2]
[390781284,1760148642777,-153.0,0.00018,2]
[390781285,1760148642789,-749.84746,0.00018,2]
[390781287,1760148642799,-151.0,0.00018,2]
[390781290,1760148642809,-151.0,0.00018,2]
[390781292,1760148642819,-151.0,0.00018,2]
[390781294,1760148642828,-413.23,0.00018015,2]
[390781296,1760148642837,-152.0,0.0001802,7]
[390781298,1760148642846,-192408.6907,0.00018023,2]
[390781300,1760148642856,-500.0,0.00018024,2]
[390781302,1760148642866,-1247.0,0.00018024,2]
[390781304,1760148642876,-500.0,0.00018024,2]
[390781307,1760148642885,-455.52158916,0.00018024,2]
[390781309,1760148642895,-1239.56718379,0.00018024,2]
[390781312,1760148642909,-475.23572958,0.00018043,2]
[390781314,1760148642919,-500.0,0.00018054,2]
[390781316,1760148642930,-2000.0,0.00018054,2]
[390781318,1760148642940,-500.0,0.00018054,2]
[390781320,1760148642950,-200.0,0.00018054,2]
[390781322,1760148642959,-217.0,0.00018064,2]
[390781325,1760148642970,-500.0,0.00018078,2]
[390781327,1760148642980,-1247.0,0.00018078,2]
[390781331,1760148642990,-1000.0,0.00018082,2]
[390781334,1760148643000,-334.5472959,0.00018088,2]
[390781337,1760148643010,-160.66622287,0.00018088,2]
[390781340,1760148643020,-257.91778498,0.00018088,2]
[390781343,1760148643030,-849.11398037,0.00018095,2]
[390781347,1760148643044,-290.07141723,0.000181,2]
[390781351,1760148643054,-199.99644693,0.000181,2]
[390781354,1760148643063,-654.05975982,0.000181,2]
[390781357,1760148643073,-10038.14612321,0.000181,2]
[390781360,1760148643083,-321.74338456,0.000181,2]
[390781364,1760148643093,-212.0478867,0.000181,2]
[390781367,1760148643103,-197.96892619,0.000181,2]
[390781370,1760148643113,-174.79304801,0.000181,2]
[390781372,1760148643122,-217.0,0.00018114,2]
[390781374,1760148643132,-823.0,0.00018128,2]
[390781376,1760148643142,-823.0,0.00018128,2]
[390781378,1760148643152,-630.0,0.00018133,2]
[390781380,1760148643162,-1247.0,0.00018133,2]
[390781382,1760148643172,-166.783429,0.00018149,2]
[390781384,1760148643181,-200.0,0.00018153,2]
[390781386,1760148643191,-9935.6257,0.00018182,2]
[390781388,1760148643201,-1000.0,0.00018186,2]
[390781390,1760148643211,-877.833,0.00018186,2]
[390781392,1760148643220,-1247.0,0.00018188,2]
[390781394,1760148643230,-1600.0,0.00018197,2]
[390781396,1760148643239,-1398.84507944,0.000182,2]
[390781398,1760148643250,-300.0,0.000182,2]
[390781400,1760148643260,-195.0,0.000182,2]
[390781402,1760148643270,-200.0,0.000182,2]
[390781404,1760148643281,-300.0,0.0001821,2]
[390781406,1760148643295,-152.0,0.00018211,8]
[390781408,1760148643305,-151.45736606,0.00018213,2]
[390781410,1760148643315,-217.0,0.00018219,2]
[390781412,1760148643324,-849.11398037,0.00018235,2]
[390781414,1760148643334,-1000.0,0.00018241,2]
[390781416,1760148643343,-1247.0,0.00018243,2]
[390781418,1760148643354,-2000.0,0.00018252,2]
[390781420,1760148643363,-500.0,0.00018252,2]
[390781422,1760148643373,-200.0,0.00018252,2]
[390781424,1760148643382,-1000.0,0.00018253,2]
[390781426,1760148643392,-482.85914795,0.00018262,2]
[390781429,1760148643402,-150.0,0.00018282,2]
[390781431,1760148643412,-150.0,0.00018282,2]
[390781433,1760148643421,-150.093,0.00018282,2]
[390781435,1760148643431,-239.383,0.00018282,2]
[390781437,1760148643440,-150.556,0.00018282,2]
[390781439,1760148643450,-150.506,0.00018282,2]
[390781441,1760148643460,-1247.0,0.00018298,2]
[390781443,1760148643470,-654.05975982,0.000183,2]
[390781445,1760148643479,-10038.14612321,0.000183,2]
[390781446,1760148643489,-321.74338456,0.000183,2]
[390781448,1760148643498,-212.0478867,0.000183,2]
[390781449,1760148643507,-3621.81845969,0.00018303,2]
[390781451,1760148643517,-217.0,0.00018312,2]
[390781452,1760148643526,-166.66,0.00018314,2]
[390781454,1760148643536,-1000.0,0.00018315,2]
[390781455,1760148643546,-1000.0,0.00018317,2]
[390781457,1760148643555,-1000.0,0.00018317,2]
[390781458,1760148643565,-1024.12676343,0.0001832,2]
[390781460,1760148643575,-180.28282974,0.00018332,2]
[390781461,1760148643585,-3292.0,0.00018337,2]
[390781463,1760148643595,-1000.0,0.00018343,2]
[390781465,1760148643604,-1000.0,0.00018344,2]
[390781466,1760148643614,-1247.0,0.00018352,2]
[390781468,1760148643623,-217.0,0.00018358,2]
[390781469,1760148643632,-206.6111973,0.0001836,6]
[390781471,1760148643641,-172.27651492,0.00018363,2]
[390781472,1760148643651,-151.0,0.00018363,2]
[390781474,1760148643661,-849.11398037,0.00018376,2]
[390781475,1760148643671,-261.6,0.00018398,2]
[390781477,1760148643680,-1428.16595,0.000184,2]
[390781478,1760148643690,-304.6,0.000184,2]
[390781480,1760148643700,-2199.31595,0.000184,2]
[390781482,1760148643709,-1398.84507944,0.000184,2]
[390781483,1760148643719,-152.0,0.00018403,9]
[390781485,1760148643728,-1247.0,0.00018407,2]
[390781487,1760148643738,-217.0,0.00018438,2]
[390781488,1760148643747,-300.0,0.00018452,2]
[390781490,1760148643757,-171.89,0.00018457,2]
[390781492,1760148643767,-1247.0,0.00018462,2]
[390781493,1760148643777,-4915.0,0.00018475,2]
[390781495,1760148643791,-10038.14612321,0.000185,2]
[390781496,1760148643801,-321.74338456,0.000185,2]
[390781498,1760148643811,-654.05975982,0.000185,2]
[390781500,1760148643820,-212.0478867,0.000185,2]
[390781502,1760148643830,-1008.0,0.000185,2]
[390781503,1760148643840,-849.11398037,0.00018516,2]
[390781505,1760148643849,-1247.0,0.00018517,2]
[390781506,1760148643859,-5000.0,0.00018531,2]
[390781508,1760148643869,-217.0,0.00018548,2]
[390781510,1760148643879,-166.783429,0.0001855,2]
[390781511,1760148643888,-1247.0,0.00018572,2]
[390781513,1760148643898,-235.437,0.00018582,2]
[390781532,1760148644161,-150.0,0.00018582,2]
[390781534,1760148644171,-150.479,0.00018582,2]
[390781536,1760148644181,-150.0,0.00018582,2]
[390781537,1760148644190,-150.302,0.00018582,2]
[390781539,1760148644200,-152.0,0.00018582,2]
[390781541,1760148644209,-3405.0,0.00018582,2]
[390781542,1760148644219,-1266.0,0.00018582,2]
[390781544,1760148644229,-2048.0,0.00018582,2]
[390781546,1760148644239,-798.0,0.00018582,2]
[390781547,1760148644248,-604.0,0.00018582,2]
[390781549,1760148644261,-571.0,0.00018582,2]
[390781551,1760148644272,-1587.0,0.00018582,2]
[390781552,1760148644281,-1333.248,0.00018582,2]
[390781554,1760148644292,-816.0,0.00018582,2]
[390781556,1760148644303,-1696.0,0.00018582,2]
[390781557,1760148644313,-914.163,0.00018582,2]
[390781559,1760148644322,-2565.058,0.00018582,2]
[390781561,1760148644331,-1182.0,0.00018582,2]
[390781562,1760148644340,-217.0,0.00018585,2]
[390781564,1760148644350,-152.0,0.00018594,10]
[390781566,1760148644361,-1398.84507944,0.000186,2]
[390781567,1760148644370,-5888.0,0.00018604,2]
[390781569,1760148644380,-1247.0,0.00018626,2]
[390781571,1760148644389,-882.32,0.00018631,2]
[390781572,1760148644398,-948.28,0.00018631,2]
[390781574,1760148644409,-849.11398037,0.00018657,2]
[390781576,1760148644418,-217.0,0.00018664,2]
[390781577,1760148644427,-5451.0,0.00018665,2]
[390781579,1760148644437,-5451.0,0.00018674,2]
[390781581,1760148644447,-1247.0,0.00018681,2]
[390781582,1760148644456,-206.6111973,0.00018697,7]
[390781584,1760148644465,-10038.14612321,0.000187,2]
[390781586,1760148644475,-321.74338456,0.000187,2]
[390781587,1760148644484,-654.05975982,0.000187,2]
[390781589,1760148644494,-15315.37425374,0.000187,2]
[390781591,1760148644503,-153.0,0.00018709,2]
[390781592,1760148644512,-153.0,0.00018709,2]
[390781594,1760148644521,-153.0,0.00018709,2]
[390781596,1760148644530,-153.0,0.00018709,2]
[390781598,1760148644541,-153.0,0.00018709,2]
[390781600,1760148644551,-151.0,0.00018709,2]
[390781602,1760148644561,-820.0,0.00018709,2]
[390781604,1760148644570,-820.0,0.00018709,2]
[390781606,1760148644579,-820.0,0.00018709,2]
[390781607,1760148644588,-153.0,0.00018709,2]
[390781608,1760148644597,-153.0,0.00018709,2]
[390781609,1760148644607,-153.0,0.00018709,2]
[390781610,1760148644616,-153.0,0.00018709,2]
[390781611,1760148644625,-153.0,0.00018709,2]
[390781612,1760148644635,-153.0,0.00018709,2]
[390781613,1760148644644,-153.0,0.00018709,2]
[390781614,1760148644653,-1247.0,0.00018736,2]
[390781615,1760148644662,-293.92515103,0.00018736,2]
[390781616,1760148644672,-1092.06,0.00018752,2]
[390781617,1760148644681,-1092.3,0.00018752,2]
[390781618,1760148644690,-1000.0,0.0001876,2]
[390781619,1760148644699,-5565.0,0.00018762,2]
[390781620,1760148644708,-152.0,0.00018785,11]
[390781621,1760148644718,-1247.0,0.00018791,2]
[390781622,1760148644727,-849.11398037,0.00018797,2]
[390781623,1760148644736,-1398.84507944,0.000188,2]
[390781624,1760148644746,-1000.0,0.000188,2]
[390781625,1760148644755,-155.17195685,0.00018804,2]
[390781626,1760148644764,-261.6,0.00018836,2]
[390781628,1760148644774,-175.87,0.00018837,2]
[390781630,1760148644783,-175.87,0.00018837,2]
[390781631,1760148644795,-175.87,0.00018837,2]
[390781632,1760148644804,-175.87,0.00018837,2]
[390781634,1760148644815,-1247.0,0.00018845,2]
[390781636,1760148644824,-166.66,0.00018848,2]
[390781638,1760148644833,-9094.37,0.00018851,7]
[390781640,1760148644843,-13671.51,0.00018851,7]
[390781642,1760148644852,-1823.17,0.00018851,7]
[390781644,1760148644861,-2397.21,0.00018851,7]
[390781647,1760148644871,-4346.18215163,0.00018879,2]
[390781649,1760148644880,-293.92515099,0.0001889,2]
[390781651,1760148644890,-10038.14612321,0.000189,2]
[390781653,1760148644899,-321.74338456,0.000189,2]
[390781655,1760148644908,-654.05975982,0.000189,2]
[390781657,1760148644917,-516.8032509,0.000189,2]
[390781659,1760148644927,-1262.91863894,0.000189,2]
[390781661,1760148644936,-341.0,0.00018904,2]
[390781663,1760148644945,-341.0,0.00018904,2]
[390781665,1760148644954,-341.0,0.00018904,2]
[390781667,1760148644963,-341.0,0.00018904,2]
[390781669,1760148644973,-341.0,0.00018904,2]
[390781671,1760148644983,-341.0,0.00018904,2]
[390781673,1760148644992,-341.0,0.00018904,2]
[390781675,1760148645001,-341.0,0.00018904,2]
[390781677,1760148645010,-341.0,0.00018904,2]
[390781679,1760148645020,-341.0,0.00018904,2]
[390781681,1760148645028,-341.0,0.00018904,2]
[390781683,1760148645040,-341.0,0.00018904,2]
[390781685,1760148645050,-418.0,0.00018904,2]
[390781687,1760148645059,-418.0,0.00018904,2]
[390781689,1760148645068,-418.0,0.00018904,2]
[390781691,1760148645079,-418.0,0.00018904,2]
[390781693,1760148645088,-418.0,0.00018904,2]
[390781695,1760148645098,-418.0,0.00018904,2]
[390781697,1760148645107,-418.0,0.00018904,2]
[390781699,1760148645116,-418.0,0.00018904,2]
[390781701,1760148645126,-418.0,0.00018904,2]
[390781703,1760148645135,-418.0,0.00018904,2]
[390781705,1760148645145,-418.0,0.00018904,2]
[390781707,1760148645154,-562.0,0.00018904,2]
[390781709,1760148645163,-562.0,0.00018904,2]
[390781711,1760148645172,-562.0,0.00018904,2]
[390781713,1760148645182,-562.0,0.00018904,2]
[390781716,1760148645192,-562.0,0.00018904,2]
[390781718,1760148645201,-562.0,0.00018904,2]
[390781720,1760148645210,-562.0,0.00018904,2]
[390781722,1760148645219,-562.0,0.00018904,2]
[390781724,1760148645229,-562.0,0.00018904,2]
[390781726,1760148645238,-562.0,0.00018904,2]
[390781728,1760148645247,-562.0,0.00018904,2]
[390781730,1760148645258,-562.0,0.00018904,2]
[390781732,1760148645268,-562.0,0.00018904,2]
[390781734,1760148645279,-562.0,0.00018904,2]
[390781736,1760148645291,-492.0,0.00018904,2]
[390781738,1760148645300,-492.0,0.00018904,2]
[390781740,1760148645310,-492.0,0.00018904,2]
[390781742,1760148645320,-492.0,0.00018904,2]
[390781744,1760148645329,-492.0,0.00018904,2]
[390781746,1760148645339,-492.0,0.00018904,2]
[390781748,1760148645347,-492.0,0.00018904,2]
[390781750,1760148645360,-492.0,0.00018904,2]
[390781752,1760148645369,-492.0,0.00018904,2]
[390781754,1760148645379,-492.0,0.00018904,2]
[390781756,1760148645388,-492.0,0.00018904,2]
[390781758,1760148645397,-492.0,0.00018904,2]
[390781760,1760148645407,-492.0,0.00018904,2]
[390781762,1760148645416,-492.0,0.00018904,2]
[390781764,1760148645426,-882.32,0.00018905,2]
[390781766,1760148645435,-151.0,0.00018911,2]
[390781768,1760148645445,-16293.01709751,0.00018931,2]
[390781770,1760148645455,-468.10214589,0.00018931,2]
[390781772,1760148645464,-849.11398037,0.00018938,2]
[390781774,1760148645474,-155.17195684,0.00018941,2]
[390781776,1760148645484,-23202.0,0.00018959,2]
[390781778,1760148645493,-500.0,0.00018973,2]
[390781779,1760148645502,-500.0,0.00018973,2]
[390781780,1760148645511,-500.0,0.00018973,2]
[390781782,1760148645521,-151.0,0.00018975,2]
[390781784,1760148645530,-152.0,0.00018976,12]
[390781786,1760148645541,-5565.0,0.00018977,2]
[390781788,1760148645551,-10000.0,0.00018977,2]
[390781790,1760148645560,-150.0,0.00018977,2]
[390781792,1760148645569,-968749.52287024,0.00018978,2]
[390781794,1760148645579,-15361.79605767,0.00018978,2]
[390781796,1760148645588,-5565.0,0.00018993,2]
[390781798,1760148645597,-151.0,0.00018997,2]
[390781800,1760148645606,-10171.61763698,0.00019,2]
[390781802,1760148645615,-1000.0,0.00019,2]
[390781804,1760148645624,-1000.0,0.00019,2]
[390781806,1760148645634,-1000.0,0.00019,2]
[390781808,1760148645643,-334.38933961,0.00019,2]
[390781810,1760148645653,-10038.14612321,0.00019,2]
[390781812,1760148645663,-469540.02609188,0.00019,2]
[390781814,1760148645672,-1398.84507944,0.00019,2]
[390781816,1760148645682,-300.0,0.00019,2]
[390781818,1760148645692,-4109.33363218,0.00019,4]
[390781820,1760148645701,-2753.27120712,0.00019,2]
[390781822,1760148645710,-339622.02,0.00019,2]
[390781824,1760148645719,-500.0,0.0001901,2]
[390781825,1760148645729,-206.6111973,0.00019033,9]
[390781827,1760148645738,-293.92515099,0.00019044,2]
[390781829,1760148645747,-259.147062,0.00019078,2]
[390781831,1760148645756,-849.11398037,0.00019078,2]
[390781833,1760148645765,-1279.55509355,0.00019078,2]
[390781835,1760148645775,-180.28282974,0.00019078,2]
[390781837,1760148645784,-155.17195684,0.00019078,2]
[390781839,1760148645798,-223.85058366,0.00019078,2]
[390781841,1760148645807,-1000.0,0.00019099,2]
[390781843,1760148645816,-1000.0,0.00019099,2]
[390781845,1760148645825,-1000.0,0.00019099,2]
[390781847,1760148645835,-988.07469707,0.000191,2]
[390781849,1760148645844,-4632.50211433,0.000191,2]
[390781851,1760148645853,-4632.50211428,0.000191,2]
[390781853,1760148645862,-4632.50211428,0.000191,2]
[390781855,1760148645871,-4632.50211428,0.000191,2]
[390781857,1760148645880,-4632.50211428,0.000191,2]
[390781859,1760148645890,-4632.50211428,0.000191,2]
[390781861,1760148645899,-4632.50211428,0.000191,2]
[390781863,1760148645908,-4632.50211428,0.000191,2]
[390781865,1760148645917,-4632.50211428,0.000191,2]
[390781867,1760148645926,-4632.50211428,0.000191,2]
[390781869,1760148645935,-4632.50211428,0.000191,2]
[390781871,1760148645944,-4632.50211428,0.000191,2]
[390781873,1760148645954,-4632.50211428,0.000191,2]
[390781875,1760148645963,-4632.50211428,0.000191,2]
[390781877,1760148645972,-4632.50211428,0.000191,2]
[390781879,1760148645982,-4632.50211428,0.000191,2]
[390781881,1760148645991,-4632.50211428,0.000191,2]
[390781883,1760148646000,-4632.50211428,0.000191,2]
[390781885,1760148646010,-4632.50211428,0.000191,2]
[390781887,1760148646019,-4632.50211428,0.000191,2]
[390781889,1760148646029,-516.80325088,0.00019126,2]
[390781891,1760148646039,-3022.74,0.00019151,2]
[390781893,1760148646049,-152.0,0.00019167,13]
[390781895,1760148646059,-205.85053596,0.00019173,2]
[390781897,1760148646068,-500.0,0.00019173,2]
[390781901,1760148646078,-500.0,0.00019173,2]
[390781904,1760148646088,-500.0,0.00019173,2]
[390781907,1760148646099,-500.20976275,0.00019173,2]
[390781910,1760148646108,-500.0,0.00019173,2]
[390781913,1760148646118,-500.0,0.00019173,2]
[390781917,1760148646127,-500.0,0.00019173,2]
[390781921,1760148646137,-500.0,0.00019173,2]
[390781924,1760148646146,-500.0,0.00019173,2]
[390781928,1760148646156,-500.0,0.00019173,2]
[390781931,1760148646166,-500.26458568,0.00019173,2]
[390781933,1760148646175,-500.0,0.00019173,2]
[390781935,1760148646184,-500.0,0.00019173,2]
[390781937,1760148646194,-500.0,0.00019173,2]
[390781939,1760148646204,-500.0,0.00019173,2]
[390781941,1760148646213,-500.0,0.00019173,2]
[390781943,1760148646222,-500.0,0.00019173,2]
[390781945,1760148646231,-500.0,0.00019173,2]
[390781947,1760148646241,-560.22170584,0.00019173,2]
[390781949,1760148646250,-500.0,0.00019173,2]
[390781951,1760148646262,-500.0,0.00019173,2]
[390781953,1760148646272,-168.14056804,0.00019173,2]
[390781955,1760148646282,-500.0,0.00019173,2]
[390781957,1760148646295,-500.79496138,0.00019173,2]
[390781959,1760148646305,-500.0,0.00019173,2]
[390781961,1760148646314,-500.0,0.00019173,2]
[390781963,1760148646325,-151.0,0.00019175,2]
[390781965,1760148646335,-151.0,0.00019175,2]
[390781967,1760148646345,-151.0,0.00019175,2]
[390781969,1760148646355,-500.0,0.00019178,2]
[390781971,1760148646364,-184.888616,0.00019178,2]
[390781973,1760148646373,-184.51022,0.00019178,2]
[390781975,1760148646382,-500.0,0.00019178,2]
[390781977,1760148646391,-500.0,0.00019178,2]
[390781979,1760148646400,-500.0,0.00019178,2]
[390781981,1760148646409,-846.8,0.00019178,2]
[390782022,1760148646755,-300.0,0.00019178,2]
[390782024,1760148646822,-500.0,0.00019178,2]
[390782025,1760148646831,-500.0,0.00019178,2]
[390782026,1760148646841,-500.0,0.00019178,2]
[390782027,1760148646850,-500.0,0.00019178,2]
[390782028,1760148646860,-500.0,0.00019178,2]
[390782029,1760148646869,-500.0,0.00019178,2]
[390782030,1760148646878,-500.0,0.00019178,2]
[390782031,1760148646888,-500.0,0.00019178,2]
[390782032,1760148646897,-500.0,0.00019178,2]
[390782034,1760148646907,-500.0,0.00019178,2]
[390782035,1760148646917,-500.0,0.00019178,2]
[390782037,1760148646926,-500.0,0.00019178,2]
[390782039,1760148646936,-500.0,0.00019178,2]
[390782041,1760148646945,-500.0,0.00019178,2]
[390782043,1760148646954,-500.0,0.00019178,2]
[390782045,1760148646963,-500.0,0.00019178,2]
[390782047,1760148646972,-500.0,0.00019178,2]
[390782049,1760148646982,-500.0,0.00019178,2]
[390782051,1760148646991,-500.0,0.00019178,2]
[390782053,1760148647001,-1336.38,0.00019178,2]
[390782056,1760148647011,-500.0,0.00019178,2]
[390782058,1760148647020,-606.84,0.00019178,2]
[390782060,1760148647030,-500.0,0.00019178,2]
[390782062,1760148647041,-500.0,0.00019178,2]
[390782064,1760148647052,-500.0,0.00019178,2]
[390782066,1760148647062,-500.0,0.00019178,2]
[390782068,1760148647072,-500.0,0.00019178,2]
[390782070,1760148647081,-500.0,0.00019178,2]
[390782072,1760148647091,-615.291057,0.00019178,2]
[390782074,1760148647100,-500.0,0.00019178,2]
[390782076,1760148647110,-500.0,0.00019178,2]
[390782078,1760148647119,-500.0,0.00019178,2]
[390782080,1760148647128,-500.0,0.00019178,2]
[390782082,1760148647138,-1584.53,0.00019178,2]
[390782084,1760148647147,-500.0,0.00019178,2]
[390782086,1760148647157,-780.15,0.00019178,2]
[390782088,1760148647166,-500.0,0.00019178,2]
[390782089,1760148647175,-500.0,0.00019178,2]
[390782090,1760148647184,-598.38,0.00019178,2]
[390782091,1760148647194,-501.03820735,0.00019178,2]
[390782092,1760148647205,-500.0,0.00019178,2]
[390782093,1760148647214,-500.0,0.00019178,2]
[390782094,1760148647224,-500.0,0.00019178,2]
[390782095,1760148647233,-500.0,0.00019178,2]
[390782096,1760148647242,-524.05679718,0.00019178,2]
[390782097,1760148647253,-500.0,0.00019178,2]
[390782098,1760148647264,-500.0,0.00019178,2]
[390782099,1760148647273,-500.0,0.00019178,2]
[390782100,1760148647286,-693.81,0.00019178,2]
[390782101,1760148647298,-500.0,0.00019178,2]
[390782102,1760148647307,-530.92,0.00019178,2]
[390782103,1760148647318,-500.0,0.00019178,2]
[390782104,1760148647328,-504.19999772,0.00019178,2]
[390782105,1760148647337,-500.0,0.00019178,2]
[390782106,1760148647346,-505.8591072,0.00019178,2]
[390782107,1760148647357,-505.8591,0.00019178,2]
[390782108,1760148647367,-500.0,0.00019178,2]
[390782109,1760148647375,-1176.89,0.00019178,2]
[390782110,1760148647384,-1176.89,0.00019178,2]
[390782111,1760148647393,-500.0,0.00019178,2]
[390782112,1760148647402,-500.0,0.00019178,2]
[390782113,1760148647411,-686.19,0.00019178,2]
[390782114,1760148647420,-500.0,0.00019178,2]
[390782115,1760148647430,-500.0,0.00019178,2]
[390782116,1760148647439,-500.0,0.00019178,2]
[390782117,1760148647448,-500.0,0.00019178,2]
[390782118,1760148647457,-1114.29,0.00019178,2]
[390782119,1760148647467,-500.0,0.00019178,2]
[390782120,1760148647476,-500.0,0.00019178,2]
[390782121,1760148647485,-500.0,0.00019178,2]
[390782122,1760148647494,-500.0,0.00019178,2]
[390782123,1760148647503,-500.0,0.00019178,2]
[390782124,1760148647512,-609.87,0.00019178,2]
[390782125,1760148647521,-500.0,0.00019178,2]
[390782126,1760148647530,-500.0,0.00019178,2]
[390782127,1760148647540,-1933.89,0.00019178,2]
[390782128,1760148647549,-500.0,0.00019178,2]
[390782129,1760148647558,-535.8,0.00019178,2]
[390782130,1760148647567,-500.0,0.00019178,2]
[390782131,1760148647576,-500.0,0.00019178,2]
[390782132,1760148647585,-500.0,0.00019178,2]
[390782133,1760148647594,-500.0,0.00019178,2]
[390782134,1760148647604,-500.0,0.00019178,2]
[390782135,1760148647613,-500.0,0.00019178,2]
[390782136,1760148647623,-572.74,0.00019178,2]
[390782137,1760148647632,-500.0,0.00019178,2]
[390782138,1760148647641,-500.0,0.00019178,2]
[390782139,1760148647650,-574.72,0.00019178,2]
[390782140,1760148647660,-504.038253,0.00019178,2]
[390782141,1760148647669,-500.0,0.00019178,2]
[390782142,1760148647678,-500.0,0.00019178,2]
[390782143,1760148647687,-500.0,0.00019178,2]
[390782144,1760148647696,-500.0,0.00019178,2]
[390782145,1760148647706,-500.0,0.00019178,2]
[390782146,1760148647715,-500.0,0.00019178,2]
[390782147,1760148647724,-3704.519376,0.00019178,2]
[390782148,1760148647734,-500.0,0.00019178,2]